bitfinex/quotes_SOLUSD_20220128
["timestamp","ask_amount","ask_price","bid_price","bid_amount"]
[1643387631372,159.2075,91.832,91.738,0.25]
[1643387631771,6.0,91.822,91.738,0.25]
[1643387631973,110.15,91.821,91.737,6.0]
[1643387632170,45.56858342,91.819,91.737,6.0]
[1643387632373,6.0,91.811,91.71,6.0]
[1643387632572,0.25,91.818,91.73,6.0]
[1643387632772,0.25,91.818,91.74,13.58]
[1643387633173,0.25,91.818,91.75,6.0]
[1643387633573,0.25,91.818,91.751,6.0]
[1643387633777,0.25,91.818,91.751,6.25]
[1643387633974,1.4833484,91.843,91.76,6.0]
[1643387634176,0.25,91.929,91.751,6.25]
[1643387634177,1.4833484,91.854,91.752,2.08607313]
[1643387634375,1.4833484,91.855,91.761,8.08607313]
[1643387634578,1.4833484,91.853,91.761,6.0]
[1643387634777,1.4833484,91.849,91.762,0.25]
[1643387634979,34.8194787,91.831,91.76,6.0]
[1643387635179,35.0694787,91.831,91.76,6.0]
[1643387635378,34.8194787,91.831,91.761,0.25]
[1643387635578,34.8194787,91.831,91.761,2.33607313]
[1643387635780,34.8194787,91.831,91.761,0.25]
[1643387635982,34.8194787,91.831,91.771,6.0]
[1643387636180,79.2981484,91.858,91.762,2.08607313]
[1643387636379,1.4833484,91.862,91.772,8.08607313]
[1643387636579,1.4833484,91.865,91.773,109.9]
[1643387636780,1.4833484,91.866,91.773,112.23607313]
[1643387636979,1.4833484,91.866,91.783,6.0]
[1643387637181,46.39461658,91.858,91.784,109.9]
[1643387637380,46.64461658,91.858,91.784,0.25]
[1643387637581,46.64461658,91.858,91.794,6.0]
[1643387637883,46.64461658,91.858,91.795,0.25]
[1643387638483,46.64461658,91.858,91.79,6.0]
[1643387639482,46.64461658,91.858,91.76,16.1641]
[1643387639685,6.0,91.848,91.76,13.58]
[1643387639883,1.4833484,91.844,91.76,13.58]
[1643387640084,41.04632563,91.843,91.76,13.58]
[1643387640284,42.77967403,91.843,91.76,13.58]
[1643387640892,16.355,91.84,91.76,13.58]
[1643387641185,37.66488547,91.829,91.737,109.9]
[1643387641385,0.25,91.828,91.738,0.25]
[1643387641586,6.0,91.819,91.738,0.25]
[1643387641783,0.25,91.818,91.74,6.0]
[1643387643485,109.9,91.817,91.67,169.7]
[1643387643686,112.85669142,91.817,91.696,1.44890164]
[1643387643886,112.85669142,91.817,91.694,1.44890164]
[1643387643887,33.87689613,91.816,91.694,1.44890164]
[1643387644085,33.87689613,91.816,91.675,16.2217]
[1643387644086,39.89752871,91.805,91.683,1.44890164]
[1643387644286,23.6558,91.804,91.683,1.44890164]
[1643387644486,6.0,91.795,91.678,1.44890164]
[1643387644689,7.4833484,91.794,91.675,16.2217]
[1643387644886,37.94496373,91.79,91.675,16.2217]
[1643387645087,22.366,91.78,91.685,6.0]
[1643387645288,0.25,91.779,91.685,6.0]
[1643387645788,34.95185226,91.775,91.685,6.0]
[1643387646190,6.0,91.765,91.685,6.0]
[1643387646387,0.25,91.764,91.685,6.0]
[1643387646588,6.25,91.764,91.685,6.0]
[1643387646788,6.25,91.764,91.66,13.58]
[1643387646988,46.9769,91.763,91.66,13.58]
[1643387647191,46.9769,91.763,91.67,6.0]
[1643387647387,34.85478962,91.752,91.67,6.0]
[1643387647788,0.25,91.751,91.67,6.0]
[1643387648393,34.85478962,91.752,91.67,6.0]
[1643387648789,34.85478962,91.752,91.671,0.25]
[1643387648988,34.85478962,91.752,91.67,6.0]
[1643387649191,144.75478962,91.752,91.67,6.0]
[1643387649393,34.85478962,91.752,91.661,0.25]
[1643387649588,0.25,91.751,91.661,0.25]
[1643387649992,0.25,91.751,91.656,6.0]
[1643387649993,0.25,91.751,91.66,13.58]
[1643387650189,0.25,91.751,91.662,2.08607313]
[1643387650389,0.25,91.772,91.67,6.0]
[1643387650588,0.25,91.772,91.68,29.942]
[1643387650789,0.25,91.772,91.681,0.25]
[1643387650989,0.25,91.772,91.69,6.0]
[1643387650990,6.0,91.763,91.69,6.0]
[1643387651389,6.0,91.762,91.691,0.25]
[1643387651589,6.0,91.762,91.69,5.75]
[1643387651789,0.25,91.761,91.69,5.75]
[1643387651994,0.25,91.761,91.68,16.362]
[1643387652192,0.25,91.761,91.67,13.58]
[1643387653493,6.25,91.761,91.68,6.0]
[1643387653897,6.25,91.761,91.681,0.25]
[1643387654301,6.25,91.761,91.68,6.0]
[1643387654501,16.37,91.76,91.68,6.0]
[1643387654701,16.37,91.76,91.663,6.0]
[1643387654903,49.25049209,91.749,91.664,6.25]
[1643387655102,6.0,91.739,91.674,6.0]
[1643387655300,0.25,91.738,91.674,6.0]
[1643387655717,0.25,91.738,91.664,0.25]
[1643387656118,0.25,91.738,91.651,0.25]
[1643387656518,0.25,91.738,91.65,6.0]
[1643387656720,0.25,91.738,91.641,0.25]
[1643387656918,0.25,91.738,91.65,6.0]
[1643387657818,0.25,91.738,91.64,29.7111]
[1643387658018,0.25,91.738,91.64,13.58]
[1643387658224,110.15,91.738,91.638,16.2205]
[1643387658420,116.15,91.738,91.638,16.2205]
[1643387658619,6.0,91.737,91.638,16.2205]
[1643387658821,40.48854537,91.735,91.638,16.2205]
[1643387659019,6.0,91.725,91.638,16.2205]
[1643387659219,109.9,91.724,91.638,16.2205]
[1643387659420,6.0,91.719,91.638,16.2205]
[1643387659621,45.13999593,91.713,91.638,16.2205]
[1643387659821,0.25,91.712,91.638,16.2205]
[1643387660219,22.5048,91.733,91.648,6.0]
[1643387660424,79.3967,91.769,91.649,0.25]
[1643387660623,79.3967,91.769,91.66,13.58]
[1643387660819,79.3967,91.769,91.661,0.25]
[1643387661021,79.3967,91.769,91.67,6.0]
[1643387661220,46.2485642,91.76,91.67,6.0]
[1643387661421,16.371,91.75,91.64,13.58]
[1643387661621,46.08230761,91.739,91.64,13.58]
[1643387661819,0.25,91.738,91.64,13.58]
[1643387662420,0.25,91.738,91.65,6.0]
[1643387662820,0.25,91.738,91.648,6.0]
[1643387663022,6.0,91.729,91.648,6.0]
[1643387663227,0.25,91.728,91.648,6.0]
[1643387664027,0.25,91.728,91.638,16.2205]
[1643387664226,110.15,91.728,91.639,0.25]
[1643387664632,45.02680607,91.717,91.639,0.25]
[1643387664830,0.25,91.716,91.639,0.25]
[1643387665431,0.25,91.716,91.638,16.2205]
[1643387666231,0.25,91.716,91.611,113.7]
[1643387666433,0.25,91.716,91.606,1.44890164]
[1643387666434,6.0,91.707,91.63,6.0]
[1643387666636,6.0,91.705,91.597,1.44890164]
[1643387666835,0.25,91.704,91.595,1.44890164]
[1643387667038,6.0,91.696,91.593,1.44890164]
[1643387667237,39.64450022,91.694,91.59,13.58]
[1643387667536,6.0,91.684,91.59,13.58]
[1643387667936,0.25,91.683,91.59,13.58]
[1643387668140,46.67237141,91.669,91.59,13.58]
[1643387668335,0.25,91.668,91.59,13.58]
[1643387668536,6.0,91.659,91.59,13.58]
[1643387668939,0.25,91.658,91.59,13.58]
[1643387669237,0.25,91.658,91.58,16.0284]
[1643387669437,0.25,91.658,91.59,6.0]
[1643387669837,0.25,91.658,91.591,0.25]
[1643387670038,0.25,91.658,91.598,6.0]
[1643387670438,0.25,91.658,91.599,0.25]
[1643387670841,6.0,91.659,91.599,0.25]
[1643387671442,69.38837141,91.669,91.599,0.25]
[1643387671643,69.38837141,91.669,91.591,0.25]
[1643387672044,6.0,91.659,91.592,6.0]
[1643387672444,0.25,91.658,91.593,0.25]
[1643387673644,0.25,91.658,91.591,0.25]
[1643387673843,0.25,91.658,91.588,0.25]
[1643387674044,0.25,91.658,91.589,6.0]
[1643387674269,0.25,91.658,91.59,0.25]
[1643387674469,0.25,91.658,91.59,6.25]
[1643387674670,0.25,91.668,91.59,6.0]
[1643387675670,0.25,91.668,91.529,193.74139941]
[1643387675671,6.0,91.659,91.579,1.44890164]
[1643387675871,0.25,91.658,91.574,1.44890164]
[1643387676073,0.25,91.658,91.57,113.7]
[1643387676269,0.25,91.658,91.557,1.44890164]
[1643387676470,24.6907,91.658,91.55,15.02890164]
[1643387676670,24.6907,91.658,91.572,113.7]
[1643387676870,6.0,91.648,91.572,113.7]
[1643387677070,36.73367789,91.647,91.582,6.0]
[1643387677272,6.0,91.637,91.572,113.7]
[1643387677470,6.0,91.637,91.582,6.0]
[1643387677871,6.0,91.637,91.583,0.25]
[1643387678174,0.25,91.636,91.582,6.0]
[1643387678771,6.0,91.637,91.582,6.0]
[1643387679471,0.25,91.636,91.582,6.0]
[1643387679671,24.4407,91.658,91.583,0.25]
[1643387679872,0.25,91.657,91.583,0.25]
[1643387680675,39.93167504,91.657,91.583,0.25]
[1643387681375,39.93167504,91.657,91.582,6.0]
[1643387682571,39.93167504,91.657,91.572,16.4865]
[1643387682772,39.93167504,91.657,91.573,0.25]
[1643387684073,0.25,91.657,91.582,6.0]
[1643387684273,16.381,91.69,91.582,6.0]
[1643387684274,22.7542,91.694,91.583,110.15]
[1643387684473,22.7542,91.694,91.591,109.9]
[1643387684775,22.8912,91.705,91.593,6.0]
[1643387684972,22.8912,91.705,91.601,3.5]
[1643387685174,48.25654523,91.704,91.601,3.5]
[1643387685372,48.25654523,91.704,91.602,110.15]
[1643387686176,48.25654523,91.704,91.602,111.59890164]
[1643387686473,48.25654523,91.704,91.612,6.0]
[1643387686874,48.25654523,91.704,91.613,6.25]
[1643387687075,48.25654523,91.704,91.613,6.0]
[1643387687272,48.25654523,91.704,91.614,6.25]
[1643387687472,48.25654523,91.704,91.614,0.25]
[1643387688278,48.25654523,91.704,91.611,109.9]
[1643387688473,48.25654523,91.704,91.621,6.0]
[1643387688674,48.25654523,91.704,91.602,1.44890164]
[1643387688875,24.8772,91.703,91.602,1.44890164]
[1643387689080,24.8772,91.703,91.612,6.0]
[1643387689280,0.25,91.702,91.612,6.0]
[1643387689481,0.25,91.702,91.61,6.0]
[1643387689685,0.25,91.702,91.614,6.0]
[1643387689883,0.25,91.702,91.615,0.25]
[1643387690086,0.25,91.702,91.615,6.25]
[1643387691487,0.25,91.702,91.615,7.69890164]
[1643387691687,0.25,91.702,91.623,6.0]
[1643387691887,0.25,91.702,91.624,0.25]
[1643387692091,16.372,91.74,91.632,6.0]
[1643387692288,16.372,91.74,91.633,0.25]
[1643387692490,16.372,91.74,91.636,6.0]
[1643387692689,40.44656653,91.718,91.641,6.0]
[1643387692989,40.44656653,91.718,91.642,6.25]
[1643387693191,40.44656653,91.718,91.642,0.25]
[1643387693393,40.44656653,91.718,91.652,6.0]
[1643387693594,40.44656653,91.718,91.642,0.25]
[1643387694191,40.44656653,91.718,91.645,6.0]
[1643387694395,40.44656653,91.718,91.642,0.25]
[1643387694595,16.372,91.74,91.649,6.0]
[1643387694793,49.4625,91.75,91.65,0.25]
[1643387695196,6.0,91.74,91.656,6.0]
[1643387695396,0.25,91.739,91.657,0.25]
[1643387695593,40.55530331,91.739,91.657,0.25]
[1643387696096,40.55530331,91.739,91.66,6.0]
[1643387696292,40.55530331,91.739,91.661,0.25]
[1643387696698,40.30530331,91.739,91.661,0.25]
[1643387697097,49.4625,91.75,91.661,116.15]
[1643387697300,1.4833484,91.779,91.67,16.363]
[1643387697498,73.1683,91.814,91.662,2.08783005]
[1643387697499,1.4833484,91.791,91.68,19.58]
[1643387697801,1.4833484,91.808,91.69,13.58]
[1643387698000,73.1683,91.814,91.691,109.9]
[1643387698199,44.40818739,91.807,91.701,109.9]
[1643387698400,44.40818739,91.807,91.702,110.15]
[1643387698603,44.40818739,91.807,91.712,6.0]
[1643387698900,109.9,91.805,91.702,0.25]
[1643387699100,6.0,91.795,91.702,0.25]
[1643387699299,109.9,91.789,91.7,13.58]
[1643387699501,6.0,91.779,91.7,13.58]
[1643387699700,48.96740321,91.778,91.7,13.58]
[1643387700506,0.25,91.777,91.7,13.58]
[1643387701402,48.96740321,91.778,91.7,13.58]
[1643387701604,48.96740321,91.778,91.71,6.0]
[1643387701903,6.0,91.779,91.711,0.25]
[1643387702105,6.0,91.804,91.72,6.0]
[1643387702302,6.0,91.804,91.721,0.25]
[1643387702503,6.0,91.804,91.72,6.0]
[1643387702705,43.24251448,91.803,91.71,29.936]
[1643387703104,6.0,91.793,91.72,6.0]
[1643387703306,43.24251448,91.803,91.72,6.0]
[1643387704105,43.24251448,91.803,91.721,6.0]
[1643387704408,47.6958,91.818,91.721,6.25]
[1643387704607,47.6958,91.818,91.73,6.0]
[1643387704807,1.4833484,91.852,91.74,13.58]
[1643387705007,1.4833484,91.856,91.75,6.0]
[1643387705210,118.8412,91.868,91.75,19.58]
[1643387705211,45.73903931,91.855,91.75,19.58]
[1643387705409,6.0,91.846,91.751,0.25]
[1643387705607,6.0,91.845,91.751,0.25]
[1643387706312,6.0,91.845,91.73,13.58]
[1643387706313,6.0,91.84,91.73,13.58]
[1643387706507,6.0,91.84,91.653,5.0]
[1643387706508,6.0,91.834,91.71,13.58]
[1643387706907,36.96806463,91.809,91.71,13.58]
[1643387707207,36.96806463,91.809,91.68,70.649]
[1643387707208,47.80806463,91.809,91.68,29.705]
[1643387707410,6.0,91.799,91.66,13.58]
[1643387707609,6.0,91.798,91.66,13.58]
[1643387707809,38.42513988,91.798,91.661,109.9]
[1643387708033,54.555,91.79,91.661,109.9]
[1643387708234,36.2123212,91.769,91.661,111.48783005]
[1643387708436,36.2123212,91.769,91.671,6.0]
[1643387708638,6.0,91.759,91.672,6.0]
[1643387708939,0.25,91.758,91.672,0.25]
[1643387709838,0.25,91.758,91.671,0.25]
[1643387710037,6.25,91.758,91.671,0.25]
[1643387710446,6.0,91.75,91.68,6.0]
[1643387710636,6.25,91.758,91.68,6.0]
[1643387710838,6.25,91.758,91.681,0.25]
[1643387711640,6.25,91.758,91.69,16.36]
[1643387711840,0.25,91.758,91.7,6.0]
[1643387712238,0.25,91.767,91.701,0.25]
[1643387713139,22.8476,91.781,91.701,0.25]
[1643387713339,22.8476,91.781,91.693,0.25]
[1643387713539,22.8476,91.781,91.702,6.0]
[1643387713942,6.0,91.771,91.703,0.25]
[1643387714238,6.0,91.771,91.703,110.15]
[1643387714439,0.25,91.77,91.703,110.15]
[1643387714641,76.2397,91.854,91.713,6.0]
[1643387714840,1.4833484,91.827,91.72,13.58]
[1643387715040,1.4833484,91.845,91.73,6.0]
[1643387715241,1.4833484,91.849,91.73,19.58]
[1643387715448,1.4833484,91.85,91.731,2.33783005]
[1643387715643,34.94412319,91.849,91.741,6.0]
[1643387715844,34.94412319,91.849,91.75,13.58]
[1643387716048,34.94412319,91.849,91.761,109.9]
[1643387716257,34.94412319,91.849,91.78,16.344]
[1643387716649,34.94412319,91.849,91.79,6.0]
[1643387716845,34.94412319,91.849,91.791,0.25]
[1643387717444,0.25,91.848,91.791,0.25]
[1643387718045,0.25,91.848,91.782,0.25]
[1643387718443,34.94412319,91.849,91.782,0.25]
[1643387719046,1.4833484,91.878,91.782,0.25]
[1643387719244,1.4833484,91.877,91.782,0.25]
[1643387719447,6.0,91.868,91.782,0.25]
[1643387720045,43.1058031,91.867,91.782,0.25]
[1643387720248,43.3558031,91.867,91.782,0.25]
[1643387720545,6.0,91.857,91.782,0.25]
[1643387720948,6.0,91.857,91.79,13.58]
[1643387721149,6.0,91.857,91.79,19.58]
[1643387721348,53.23893982,91.889,91.791,2.33783005]
[1643387721550,53.23893982,91.889,91.801,6.0]
[1643387721551,48.7989,91.889,91.801,6.0]
[1643387721747,1.4833484,91.905,91.81,13.58]
[1643387722048,1.4833484,91.909,91.82,6.0]
[1643387722248,38.92528516,91.908,91.82,19.58]
[1643387722448,38.92528516,91.908,91.821,0.25]
[1643387722747,6.0,91.898,91.821,6.25]
[1643387722950,6.0,91.898,91.83,6.0]
[1643387723147,6.0,91.894,91.831,6.0]
[1643387723348,0.25,91.893,91.831,6.25]
[1643387723548,6.0,91.897,91.831,0.25]
[1643387723849,6.0,91.897,91.841,6.0]
[1643387724250,6.0,91.897,91.842,0.25]
[1643387724448,6.0,91.898,91.842,0.25]
[1643387724850,0.25,91.897,91.842,0.25]
[1643387725247,0.25,91.897,91.832,109.9]
[1643387725248,0.25,91.897,91.832,0.25]
[1643387725454,0.25,91.897,91.842,6.0]
[1643387725649,0.25,91.897,91.82,13.58]
[1643387725852,9.15,91.897,91.82,13.58]
[1643387726052,6.0,91.887,91.79,13.58]
[1643387726249,6.0,91.887,91.77,13.58]
[1643387726449,179.84743982,91.886,91.75,29.929]
[1643387726677,1.4833484,91.883,91.75,29.929]
[1643387726855,0.25,91.882,91.75,32.01683005]
[1643387727057,40.62905558,91.872,91.75,32.01683005]
[1643387727253,40.62905558,91.872,91.75,29.929]
[1643387727254,45.5897,91.871,91.75,29.929]
[1643387727453,6.0,91.862,91.75,29.929]
[1643387727657,6.0,91.861,91.75,29.929]
[1643387727856,0.25,91.86,91.75,13.58]
[1643387728256,11.59943364,91.859,91.75,13.58]
[1643387728457,16.353,91.85,91.75,13.58]
[1643387728655,30.8088,91.849,91.75,13.58]
[1643387728856,48.16372741,91.839,91.75,13.58]
[1643387729058,6.0,91.838,91.75,13.58]
[1643387729256,6.0,91.829,91.75,13.58]
[1643387729459,14.81,91.829,91.71,16.356]
[1643387729655,6.0,91.827,91.72,13.58]
[1643387729858,110.15,91.826,91.72,13.58]
[1643387730156,109.9,91.815,91.72,13.58]
[1643387730457,24.8391,91.814,91.72,13.58]
[1643387730956,6.0,91.804,91.73,6.0]
[1643387731157,39.83167076,91.803,91.73,6.0]
[1643387731357,0.25,91.803,91.731,0.25]
[1643387731558,0.25,91.803,91.731,6.25]
[1643387731755,6.0,91.804,91.732,109.9]
[1643387732158,6.0,91.804,91.742,6.0]
[1643387732358,23.5333,91.848,91.743,110.15]
[1643387732557,6.0,91.828,91.753,6.0]
[1643387732760,6.0,91.828,91.754,0.25]
[1643387732956,23.1461,91.847,91.761,6.0]
[1643387733156,6.0,91.828,91.764,6.0]
[1643387733356,39.7784322,91.827,91.765,0.25]
[1643387733557,39.7784322,91.827,91.765,6.25]
[1643387733758,0.25,91.826,91.765,6.0]
[1643387734183,0.25,91.826,91.76,6.0]
[1643387734582,0.25,91.826,91.757,6.0]
[1643387735186,39.7784322,91.827,91.757,6.0]
[1643387736388,0.25,91.826,91.757,6.0]
[1643387737589,110.15,91.826,91.75,6.0]
[1643387738090,110.15,91.826,91.74,6.0]
[1643387738290,133.5901,91.826,91.74,6.0]
[1643387738491,16.357,91.82,91.73,13.58]
[1643387738691,6.0,91.816,91.73,13.58]
[1643387738890,0.25,91.815,91.73,13.58]
[1643387739492,6.0,91.81,91.73,13.58]
[1643387739695,6.0,91.81,91.71,13.58]
[1643387739895,23.2808,91.809,91.717,6.0]
[1643387740494,109.9,91.807,91.717,6.0]
[1643387740793,0.25,91.806,91.717,6.0]
[1643387740995,24.4838,91.808,91.721,109.9]
[1643387741194,1.4833484,91.827,91.731,6.0]
[1643387741395,25.0166484,91.848,91.74,13.58]
[1643387742386,23.5333,91.848,91.771,0.25]
[1643387742590,1.4833484,91.862,91.771,10.46]
[1643387742783,46.5181,91.87,91.772,109.9]
[1643387742982,46.5181,91.87,91.782,6.0]
[1643387743184,1.4833484,91.876,91.791,109.9]
[1643387743383,1.4833484,91.876,91.792,0.25]
[1643387743684,1.4833484,91.877,91.801,6.0]
[1643387743882,0.25,91.876,91.802,0.25]
[1643387744083,0.25,91.876,91.81,6.0]
[1643387744284,0.25,91.876,91.811,0.25]
[1643387744684,0.25,91.881,91.811,0.25]
[1643387744989,1.4833484,91.883,91.811,0.25]
[1643387745286,47.84005406,91.886,91.811,0.16295566]
[1643387745484,47.84005406,91.886,91.811,12.50295566]
[1643387745887,47.84005406,91.886,91.812,109.9]
[1643387746088,1.4833484,91.898,91.812,109.9]
[1643387746386,1.4833484,91.899,91.822,6.0]
[1643387746585,1.4833484,91.902,91.83,13.58]
[1643387746785,1.4833484,91.909,91.83,13.58]
[1643387746985,1.4833484,91.913,91.841,109.9]
[1643387747186,38.74961587,91.912,91.85,13.58]
[1643387747385,38.74961587,91.912,91.851,6.25]
[1643387747590,38.74961587,91.912,91.861,6.0]
[1643387747788,38.74961587,91.912,91.862,0.25]
[1643387747988,38.74961587,91.912,91.851,0.25]
[1643387748490,38.74961587,91.912,91.86,6.0]
[1643387748987,1.4833484,91.919,91.861,110.15]
[1643387749188,1.4833484,91.926,91.861,118.91]
[1643387749388,1.4833484,91.933,91.872,109.9]
[1643387749589,1.4833484,91.933,91.882,6.0]
[1643387749888,34.83909706,91.947,91.883,0.25]
[1643387750092,34.83909706,91.947,91.89,6.0]
[1643387750490,34.83909706,91.947,91.891,0.25]
[1643387751890,34.83909706,91.947,91.88,13.58]
[1643387752091,34.83909706,91.947,91.86,13.58]
[1643387752289,1.4833484,91.937,91.86,13.58]
[1643387752491,1.4833484,91.942,91.86,13.58]
[1643387752911,71.6386,91.946,91.86,13.58]
[1643387753295,71.6386,91.946,91.861,0.25]
[1643387753590,71.6386,91.946,91.86,13.58]
[1643387753788,1.4833484,91.943,91.861,0.25]
[1643387753990,71.6386,91.946,91.87,6.0]
[1643387754195,0.25,91.945,91.87,6.0]
[1643387754393,0.25,91.945,91.871,0.25]
[1643387754891,0.25,91.945,91.837,109.9]
[1643387754892,6.0,91.936,91.84,16.332]
[1643387755094,6.0,91.934,91.82,13.58]
[1643387755297,1.4833484,91.93,91.8,13.58]
[1643387755494,6.0,91.92,91.79,13.58]
[1643387755695,1.4833484,91.919,91.78,13.58]
[1643387755894,6.0,91.916,91.78,13.58]
[1643387756094,6.0,91.908,91.78,13.58]
[1643387756295,16.344,91.9,91.737,2.09004538]
[1643387756495,6.0,91.89,91.75,13.58]
[1643387756698,40.40063081,91.889,91.73,13.58]
[1643387756895,13.58,91.88,91.73,13.58]
[1643387757097,6.0,91.87,91.73,13.58]
[1643387757297,1.4833484,91.863,91.73,13.58]
[1643387757595,6.0,91.853,91.74,6.0]
[1643387757799,120.6647,91.869,91.75,13.58]
[1643387757999,6.0,91.859,91.74,0.25]
[1643387758199,2.95669142,91.852,91.74,0.25]
[1643387758497,6.0,91.842,91.74,6.25]
[1643387758697,43.13498556,91.841,91.741,109.9]
[1643387758899,6.0,91.84,91.74,13.83]
[1643387759097,6.0,91.831,91.74,13.83]
[1643387759298,0.25,91.83,91.74,13.58]
[1643387760724,0.25,91.83,91.74,13.83]
[1643387760929,2.95669142,91.829,91.72,13.58]
[1643387761122,6.0,91.819,91.72,13.58]
[1643387761523,109.9,91.818,91.72,13.58]
[1643387761924,6.0,91.808,91.72,13.58]
[1643387762126,16.362,91.8,91.683,16.3691]
[1643387762325,16.612,91.8,91.67,13.58]
[1643387762522,6.0,91.79,91.67,13.58]
[1643387762723,157.9604,91.789,91.67,13.58]
[1643387762926,174.6904,91.789,91.67,13.58]
[1643387763323,16.367,91.77,91.67,13.58]
[1643387763523,49.3100208,91.779,91.68,6.0]
[1643387763724,49.3100208,91.779,91.698,113.7]
[1643387764023,49.3100208,91.779,91.7,13.58]
[1643387764424,49.3100208,91.779,91.7,13.83]
[1643387764825,49.3100208,91.779,91.701,109.9]
[1643387765028,49.3100208,91.779,91.7,13.83]
[1643387765430,76.1561,91.799,91.7,13.83]
[1643387765626,0.25,91.78,91.71,6.0]
[1643387765827,0.25,91.78,91.71,6.25]
[1643387766027,0.25,91.78,91.71,19.83]
[1643387766326,0.25,91.78,91.71,13.83]
[1643387766527,48.6493,91.804,91.72,22.355]
[1643387766927,48.6493,91.804,91.72,36.185]
[1643387767328,81.79199142,91.838,91.72,30.185]
[1643387767528,43.91880855,91.806,91.72,30.185]
[1643387768428,43.91880855,91.806,91.721,109.9]
[1643387768634,125.6582,91.838,91.721,109.9]
[1643387768830,125.6582,91.838,91.731,6.0]
[1643387769030,75.1696,91.859,91.74,13.58]
[1643387769230,75.1696,91.859,91.743,5.0]
[1643387769431,6.0,91.849,91.75,6.0]
[1643387769634,48.152062,91.857,91.76,13.58]
[1643387769833,48.152062,91.857,91.77,13.58]
[1643387770231,48.152062,91.857,91.78,6.0]
[1643387770433,75.1696,91.859,91.78,6.0]
[1643387770633,24.7058,91.867,91.78,6.25]
[1643387770832,24.7058,91.867,91.79,13.58]
[1643387771033,72.962,91.882,91.79,13.58]
[1643387771034,72.962,91.882,91.8,6.0]
[1643387771436,42.1779277,91.881,91.8,6.25]
[1643387772133,0.25,91.88,91.8,6.25]
[1643387772334,42.1779277,91.881,91.8,6.25]
[1643387772835,42.1779277,91.881,91.8,6.0]
[1643387773041,42.1779277,91.881,91.79,13.58]
[1643387773433,6.0,91.871,91.79,13.58]
[1643387773633,6.0,91.871,91.77,13.58]
[1643387773834,6.25,91.87,91.77,13.58]
[1643387774034,6.0,91.869,91.77,29.9947]
[1643387774336,6.0,91.869,91.771,109.9]
[1643387774534,6.0,91.869,91.781,6.0]
[1643387774734,6.0,91.869,91.77,13.58]
[1643387774933,2.95669142,91.868,91.77,13.58]
[1643387775133,6.0,91.858,91.78,6.0]
[1643387775333,0.25,91.87,91.786,6.0]